fUST/lending_fUST_20260529
["ID","MTS","AMOUNT","RATE_DAILY","PERIOD"]
[423313581,1780051847000,-500.0,8.767e-05,2]
[423313583,1780051847000,-500.0,8.767e-05,2]
[423313593,1780051847000,-500.0,8.767e-05,2]
[423313578,1780051847000,-904.0563,8.767e-05,2]
[423313576,1780051847000,-500.0,8.493e-05,2]
[423313574,1780051847000,-500.0,8.493e-05,2]
[423313573,1780051847000,-500.0,8.493e-05,2]
[423313584,1780051847000,-500.0,8.767e-05,2]
[423313600,1780051847000,-590.1,8.767e-05,2]
[423313606,1780051847000,-500.0,8.767e-05,2]
[423313596,1780051847000,-500.0,8.767e-05,2]
[423313605,1780051847000,-500.0,8.767e-05,2]
[423313608,1780051847000,-500.0,8.767e-05,2]
[423313598,1780051847000,-500.0,8.767e-05,2]
[423313610,1780051847000,-310.57807574,8.767e-05,2]
[423313603,1780051847000,-500.0,8.767e-05,2]
[423313612,1780051847000,-500.0,8.767e-05,2]
[423313624,1780051847000,-517.34231255,9.041e-05,2]
[423313614,1780051847000,-500.0,8.767e-05,2]
[423313615,1780051847000,-500.0,8.767e-05,2]
[423313617,1780051847000,-500.0,8.767e-05,2]
[423313621,1780051847000,-500.0,8.767e-05,2]
[423313620,1780051847000,-500.0,8.767e-05,2]
[423313601,1780051847000,-500.0,8.767e-05,2]
[423313619,1780051847000,-500.0,8.767e-05,2]
[423313798,1780052328000,448.0,0.00020184,120]
[423313799,1780052344000,10000.0,0.00020548,120]
[423313800,1780052360000,10000.0,0.00020548,120]
[423313805,1780052472000,-152.0,7.879e-05,2]
[423313807,1780052489000,-261.92294769,7.939e-05,2]
[423313808,1780052505000,-379.0,7.999e-05,2]
[423313809,1780052522000,-3355.1963682,8e-05,2]
[423313810,1780052539000,-379.0,8e-05,2]
[423313812,1780052556000,-1265.8036318,8e-05,2]
[423313813,1780052573000,-2468.3927364,8e-05,2]
[423313815,1780052590000,-1265.8036318,8e-05,2]
[423314070,1780052976000,-606.4168751,8e-05,2]
[423314071,1780052977000,-520.47749565,8e-05,2]
[423314072,1780052984000,-377.41967901,8e-05,2]
[423314075,1780052988000,-500.0,8e-05,2]
[423314085,1780053006000,-500.0,8e-05,2]
[423314089,1780053008000,-500.00215383,8e-05,2]
[423314112,1780053010000,-500.0,8e-05,2]
[423314216,1780053033000,-500.0,8.647e-05,2]
[423314202,1780053033000,-5000.0,8e-05,2]
[423314208,1780053033000,-176.855538,8.055e-05,2]
[423314206,1780053033000,-152.0,8.007e-05,2]
[423314204,1780053033000,-256.68448874,8.002e-05,2]
[423314210,1780053033000,-500.0,8.492e-05,2]
[423314212,1780053033000,-541.48,8.492e-05,2]
[423314214,1780053033000,-500.0,8.492e-05,2]
[423314218,1780053033000,-298.34,8.647e-05,2]
[423314200,1780053033000,-3499.99784617,8e-05,2]
[423314225,1780053033000,-1927.6347498,8.648e-05,2]
[423314222,1780053033000,-178.7897207,8.648e-05,2]
[423314226,1780053033000,-500.0,8.764e-05,2]
[423314228,1780053033000,-500.0,8.764e-05,2]
[423314234,1780053033000,-500.0,8.764e-05,2]
[423314231,1780053033000,-516.72,8.764e-05,2]
[423314233,1780053033000,-500.0,8.764e-05,2]
[423314230,1780053033000,-590.8,8.764e-05,2]
[423314235,1780053033000,-256.93048413,8.765e-05,2]
[423314221,1780053033000,-500.0,8.647e-05,2]
[423314280,1780053039000,-500.0,9.039e-05,2]
[423314291,1780053039000,-152.0,9.205e-05,7]
[423314282,1780053039000,-500.0,9.039e-05,2]
[423314292,1780053039000,-152.0,9.208e-05,7]
[423314290,1780053039000,-500.0,9.195e-05,2]
[423314285,1780053039000,-500.0,9.039e-05,2]
[423314288,1780053039000,-1522.4134126,9.123e-05,2]
[423314283,1780053039000,-500.0,9.039e-05,2]
[423314289,1780053039000,-500.0,9.195e-05,2]
[423314286,1780053039000,-500.0,9.04e-05,2]
[423314278,1780053039000,-500.0,9.039e-05,2]
[423314287,1780053039000,-500.0,9.04e-05,2]
[423314293,1780053039000,-152.0,9.221e-05,7]
[423314295,1780053039000,-255.63482064,9.221e-05,2]
[423314284,1780053039000,-291.45,9.039e-05,2]
[423314270,1780053039000,-500.0,9.038e-05,2]
[423314274,1780053039000,-500.0,9.038e-05,2]
[423314273,1780053039000,-500.0,9.038e-05,2]
[423314294,1780053039000,-344.36517936,9.221e-05,2]
[423314258,1780053039000,-5000.0,8.676e-05,2]
[423314259,1780053039000,-500.0,8.764e-05,2]
[423314260,1780053039000,-243.06951587,8.765e-05,2]
[423314262,1780053039000,-500.0,8.765e-05,2]
[423314261,1780053039000,-500.0,8.765e-05,2]
[423314268,1780053039000,-500.0,8.921e-05,2]
[423314263,1780053039000,-500.0,8.765e-05,2]
[423314266,1780053039000,-500.0,8.766e-05,2]
[423314267,1780053039000,-500.0,8.766e-05,2]
[423314264,1780053039000,-500.0,8.765e-05,2]
[423314276,1780053039000,-500.0,9.038e-05,2]
[423314271,1780053039000,-500.0,9.038e-05,2]
[423314269,1780053039000,-500.0,8.921e-05,2]
[423314265,1780053039000,-500.0,8.765e-05,2]
[423314298,1780053039000,-538.88858038,9.312e-05,2]
[423314296,1780053039000,-152.0,9.24e-05,7]
[423314300,1780053039000,-500.0,9.312e-05,2]
[423314318,1780053039000,-500.0,9.587e-05,2]
[423314320,1780053039000,-535.2,9.588e-05,2]
[423314319,1780053039000,-628.11728746,9.587e-05,2]
[423314321,1780053039000,-529.14,9.743e-05,2]
[423314325,1780053039000,-500.0,9.861e-05,2]
[423314322,1780053039000,-500.0,9.86e-05,2]
[423314311,1780053039000,-500.0,9.586e-05,2]
[423314323,1780053039000,-500.0,9.86e-05,2]
[423314328,1780053039000,-302.88769671,0.00010002,2]
[423314326,1780053039000,-295.86892595,9.861e-05,2]
[423314329,1780053039000,-1513.458,0.00010068,2]
[423314327,1780053039000,-204.13107405,9.861e-05,2]
[423314332,1780053039000,-161.01618379,0.00010135,2]
[423314331,1780053039000,-500.0,0.00010134,2]
[423314324,1780053039000,-280.34,9.86e-05,2]
[423314316,1780053039000,-500.0,9.587e-05,2]
[423314313,1780053039000,-287.0,9.586e-05,2]
[423314310,1780053039000,-204.58,9.469e-05,2]
[423314330,1780053039000,-185.0,0.0001008,2]
[423314299,1780053039000,-500.0,9.312e-05,2]
[423314301,1780053039000,-500.0,9.312e-05,2]
[423314304,1780053039000,-500.0,9.313e-05,2]
[423314302,1780053039000,-500.0,9.313e-05,2]
[423314303,1780053039000,-500.0,9.313e-05,2]
[423314305,1780053039000,-500.0,9.313e-05,2]
[423314307,1780053039000,-500.0,9.314e-05,2]
[423314306,1780053039000,-500.0,9.313e-05,2]
[423314317,1780053039000,-500.0,9.587e-05,2]
[423314314,1780053039000,-500.0,9.586e-05,2]
[423314308,1780053039000,-500.0,9.314e-05,2]
[423314312,1780053039000,-500.0,9.586e-05,2]
[423314315,1780053039000,-500.0,9.587e-05,2]
[423314309,1780053039000,-500.0,9.469e-05,2]
[423314297,1780053039000,-500.0,9.312e-05,2]
[423314335,1780053041000,-500.0,0.00010135,2]
[423314334,1780053041000,-338.98381621,0.00010135,2]
[423314338,1780053041000,-358.47730586,0.00010224,2]
[423314337,1780053041000,-283.42607812,0.00010224,2]
[423314336,1780053041000,-720.0,0.00010143,2]
[423314367,1780053044000,-71.7402621,0.00010892,2]
[423314366,1780053044000,-160.0,0.00010892,2]
[423314364,1780053044000,-500.0,0.00010683,2]
[423314365,1780053044000,-160.0,0.00010892,2]
[423314363,1780053044000,-333.97399169,0.00010409,2]
[423314362,1780053044000,-166.02600831,0.00010409,2]
[423314361,1780053044000,-772.09661602,0.00010224,2]
[423314397,1780053047000,-500.0,0.00010958,2]
[423314396,1780053047000,-500.0,0.00010958,2]
[423314390,1780053047000,-500.0,0.00010958,2]
[423314388,1780053047000,-500.0,0.00010958,2]
[423314389,1780053047000,-500.0,0.00010958,2]
[423314386,1780053047000,-500.0,0.00010957,2]
[423314393,1780053047000,-500.0,0.00010958,2]
[423314392,1780053047000,-500.0,0.00010958,2]
[423314387,1780053047000,-166.99169174,0.00010958,2]
[423314394,1780053047000,-177.66933329,0.00010958,2]
[423314402,1780053047000,-500.0,0.00010958,3]
[423314401,1780053047000,-500.0,0.00010958,2]
[423314395,1780053047000,-322.33066671,0.00010958,2]
[423314399,1780053047000,-500.0,0.00010958,2]
[423314398,1780053047000,-500.0,0.00010958,2]
[423314400,1780053047000,-521.87638126,0.00010958,2]
[423314404,1780053047000,-5223.28945271,0.00010959,2]
[423314403,1780053047000,-500.0,0.00010958,4]
[423314405,1780053047000,-7408.94175514,0.00010959,2]
[423314391,1780053047000,-500.0,0.00010958,2]
[423314422,1780053472000,426.0,0.00020177,120]
[423314437,1780054012000,-1000.0,8e-05,2]
[423314438,1780054021000,-1000.0,8e-05,2]
[423314739,1780054238000,-152.0,8.268e-05,2]
[423314710,1780054238000,-2873.40886433,8e-05,2]
[423314731,1780054238000,-2126.59113567,8e-05,2]
[423314733,1780054238000,-723.3519814,8e-05,2]
[423314735,1780054238000,-4276.6480186,8e-05,2]
[423314737,1780054238000,-257.9612649,8.036e-05,2]
[423314741,1780054238000,-152.0,9.207e-05,7]
[423314759,1780054238000,-84.67905092,0.00010145,2]
[423314745,1780054238000,-152.0,9.243e-05,7]
[423314757,1780054238000,-304.39429258,0.00010036,2]
[423314753,1780054238000,-532.28876763,9.81e-05,2]
[423314755,1780054238000,-946.29114245,9.81e-05,2]
[423314743,1780054238000,-152.0,9.21e-05,7]
[423314749,1780054238000,-593.89711242,9.81e-05,2]
[423314747,1780054238000,-152.0,9.749e-05,2]
[423314751,1780054238000,-295.71598202,9.81e-05,2]
[423315640,1780054246000,-2928.80568503,0.00010044,2]
[423315649,1780054246000,-133.84822138,0.00010145,2]
[423315647,1780054246000,-742.7351078,0.00010044,2]
[423315651,1780054246000,-1490.4234926,0.00010145,2]
[423315662,1780054246000,-1467.12943742,0.00010376,2]
[423315652,1780054246000,-500.0,0.00010375,2]
[423315668,1780054246000,-248.53483167,0.00010649,2]
[423315658,1780054246000,-343.75088468,0.00010375,2]
[423315666,1780054246000,-1002.62,0.00010376,2]
[423315654,1780054246000,-500.0,0.00010375,2]
[423315656,1780054246000,-156.24911532,0.00010375,2]
[423315670,1780054246000,-500.0,0.00010649,2]
[423315672,1780054246000,-191.69573091,0.00010649,2]
[423315674,1780054246000,-308.30426909,0.00010649,2]
[423315676,1780054246000,-64.61998121,0.00010889,2]
[423315664,1780054246000,-185.0,0.00010376,2]
[423315660,1780054246000,-2161.87056258,0.00010376,2]
[423320883,1780054551000,405.0,0.00020178,120]
[423320928,1780055432000,-1828.60152261,8.389e-05,2]
[423320927,1780055432000,-147.24,8.389e-05,2]
[423320926,1780055432000,-5000.0,8.305e-05,2]
[423320930,1780055432000,-2196.49197564,8.389e-05,2]
[423320932,1780055432000,-252.5862637,8.69e-05,2]
[423320931,1780055432000,-240.72568307,8.389e-05,2]
[423320933,1780055432000,-418.68805323,9e-05,2]
[423320934,1780055432000,-583.21743675,9e-05,2]
[423320929,1780055432000,-586.94081868,8.389e-05,2]
[423320974,1780055438000,-298.05179117,0.0001069,2]
[423320975,1780055438000,-160.0,0.00010888,2]
[423320972,1780055438000,-152.0,0.00010609,2]
[423320979,1780055438000,-2367.7687921,0.00011053,2]
[423320978,1780055438000,-500.0,0.00011053,2]
[423320976,1780055438000,-160.0,0.00010888,2]
[423320981,1780055438000,-500.0,0.00011327,2]
[423320980,1780055438000,-500.0,0.00011196,2]
[423320983,1780055438000,-500.0,0.00011601,2]
[423320982,1780055438000,-500.0,0.0001147,2]
[423320977,1780055438000,-160.0,0.00010888,2]
[423320973,1780055438000,-364.56431268,0.00010688,2]
[423320984,1780055438000,-155.41494307,0.00011625,7]
[423320969,1780055438000,-271.43867025,0.00010546,2]
[423320970,1780055438000,-3629.0,0.00010558,2]
[423320966,1780055438000,-152.0,9.243e-05,7]
[423320968,1780055438000,-152.0,9.89e-05,2]
[423320967,1780055438000,-1117.8176194,9.56e-05,2]
[423320963,1780055438000,-755.85439673,9.018e-05,2]
[423320962,1780055438000,-474.37804655,9.018e-05,2]
[423320960,1780055438000,-5000.0,8.91e-05,2]
[423320965,1780055438000,-152.0,9.24e-05,7]
[423320964,1780055438000,-152.0,9.24e-05,7]
[423320961,1780055438000,-1678.09451002,9e-05,2]
[423320971,1780055438000,-185.0,0.00010558,2]
[423320986,1780055438000,-500.0,0.00011875,2]
[423321001,1780055438000,-425.861,0.00013514,2]
[423320989,1780055438000,-1869.37484394,0.000121,5]
[423320985,1780055438000,-500.0,0.00011744,2]
[423321011,1780055438000,-388.9828461,0.0001469,2]
[423321010,1780055438000,-155.49703593,0.00014345,2]
[423321013,1780055438000,-1071.17434937,0.00014834,2]
[423321012,1780055438000,-170.64116876,0.00014833,2]
[423321009,1780055438000,-205.64718,0.00013699,2]
[423321005,1780055438000,-1000.0,0.00013699,2]
[423321007,1780055438000,-205.64718,0.00013699,2]
[423321006,1780055438000,-205.64718,0.00013699,2]
[423321004,1780055438000,-151.9315249,0.00013613,2]
[423321003,1780055438000,-185.0,0.00013558,2]
[423321002,1780055438000,-3629.0,0.00013558,2]
[423321008,1780055438000,-205.64718,0.00013699,2]
[423320998,1780055438000,-266.47,0.00012696,2]
[423320999,1780055438000,-1117.8176194,0.00013097,2]
[423320993,1780055438000,-500.0,0.00012257,2]
[423320997,1780055438000,-343.51731863,0.0001269,2]
[423320996,1780055438000,-212.18120664,0.00012566,2]
[423320995,1780055438000,-500.0,0.00012423,2]
[423320994,1780055438000,-500.0,0.00012292,2]
[423320991,1780055438000,-6627.08699826,0.000121,5]
[423320990,1780055438000,-1766.65653618,0.000121,5]
[423320992,1780055438000,-500.0,0.00012149,2]
[423320988,1780055438000,-155.49703593,0.00012049,2]
[423320987,1780055438000,-500.0,0.00012018,2]
[423321000,1780055438000,-155.49703593,0.00013197,2]
[423321014,1780055439000,-170.64116875,0.0001485,2]
[423321016,1780055439000,-170.64116875,0.00014883,2]
[423321019,1780055439000,-205.64718,0.000149,2]
[423321015,1780055439000,-170.64116875,0.00014867,2]
[423321018,1780055439000,-205.64718,0.000149,2]
[423321022,1780055439000,-70438.15769883,0.0001493,2]
[423321021,1780055439000,-205.64718,0.000149,2]
[423321020,1780055439000,-205.64718,0.000149,2]
[423321017,1780055439000,-170.64116875,0.000149,2]
[423321040,1780055443000,-6355.5,0.0001493,2]
[423321039,1780055443000,-883.33,0.0001493,2]
[423321043,1780055446000,-323.32659532,0.0001493,2]
[423321044,1780055446000,-1000.0,0.0001493,2]
[423321042,1780055446000,-3434.37956729,0.00014781,2]
[423321261,1780055612000,384.0,0.00020184,120]
[423321283,1780056111000,-4999.91067992,0.0001004,2]
[423321306,1780056396000,369.83110738,0.00020547,120]
[423321339,1780056632000,-500.0,0.00010243,2]
[423321333,1780056632000,-2575.47473491,9.454e-05,2]
[423321335,1780056632000,-5000.0,9.55e-05,2]
[423321334,1780056632000,-2424.52526509,9.454e-05,2]
[423321336,1780056632000,-300.0,9.694e-05,2]
[423321337,1780056632000,-238.49654146,9.695e-05,2]
[423321340,1780056632000,-500.0,0.00010243,2]
[423321338,1780056632000,-500.0,0.00010243,2]
[423321344,1780056632000,-3629.0,0.00010962,2]
[423321342,1780056632000,-160.0,0.0001091,2]
[423321341,1780056632000,-269.59582555,0.00010243,2]
[423321349,1780056632000,-324.35529638,0.00013695,2]
[423321345,1780056632000,-185.0,0.00011111,2]
[423321348,1780056632000,-152.0,0.00013081,2]
[423321350,1780056632000,-358.00740927,0.00013699,2]
[423321347,1780056632000,-203.578,0.00013012,2]
[423321343,1780056632000,-160.0,0.0001091,2]
[423321346,1780056632000,-281.42591892,0.00011695,2]
[423321427,1780056638000,-500.0,0.00013961,2]
[423321417,1780056638000,-500.0,0.00013961,2]
[423321429,1780056638000,-500.0,0.00013961,2]
[423321431,1780056638000,-500.0,0.00013961,2]
[423321440,1780056638000,-185.0,0.00014111,2]
[423321438,1780056638000,-3629.0,0.00013962,2]
[423321422,1780056638000,-500.0,0.00013961,2]
[423321425,1780056638000,-614.46288908,0.00013961,2]
[423321436,1780056638000,-500.0,0.00013961,2]
[423321409,1780056638000,-504.82266158,0.0001396,2]
[423321423,1780056638000,-500.0,0.00013961,2]
[423321418,1780056638000,-500.0,0.00013961,2]
[423321413,1780056638000,-500.0,0.00013961,2]
[423321411,1780056638000,-500.0,0.00013961,2]
[423321407,1780056638000,-500.0,0.0001396,2]
[423321406,1780056638000,-500.0,0.0001396,2]
[423321415,1780056638000,-500.0,0.00013961,2]
[423321404,1780056638000,-641.99259073,0.00013699,2]
[423321433,1780056638000,-500.0,0.00013961,2]
[423321420,1780056638000,-500.0,0.00013961,2]
[423321443,1780056638000,-155.49703593,0.00014456,2]
[423321459,1780056638000,-500.0,0.00014719,2]
[423321445,1780056638000,-500.0,0.00014556,2]
[423321481,1780056638000,-14756.56778394,0.00014722,2]
[423321479,1780056638000,-19645.90960928,0.00014722,2]
[423321472,1780056638000,-477.80054211,0.00014719,2]
[423321475,1780056638000,-500.0,0.00014719,2]
[423321473,1780056638000,-500.0,0.00014719,2]
[423321477,1780056638000,-234.46037948,0.00014719,2]
[423321467,1780056638000,-500.0,0.00014719,2]
[423321470,1780056638000,-500.0,0.00014719,2]
[423321468,1780056638000,-500.0,0.00014719,2]
[423321456,1780056638000,-500.0,0.00014719,2]
[423321461,1780056638000,-500.0,0.00014719,2]
[423321457,1780056638000,-500.0,0.00014719,2]
[423321463,1780056638000,-500.0,0.00014719,2]
[423321465,1780056638000,-500.0,0.00014719,2]
[423321454,1780056638000,-500.0,0.00014719,2]
[423321447,1780056638000,-500.0,0.00014556,2]
[423321448,1780056638000,-500.0,0.00014556,2]
[423321450,1780056638000,-432.90073873,0.00014556,2]
[423321452,1780056638000,-222.97361016,0.00014719,2]
[423321483,1780056638000,-706.22795472,0.00014722,2]
[423321441,1780056638000,-500.0,0.00014235,2]
[423322041,1780056643000,-5000.0,0.00014571,2]
[423322043,1780056643000,-44153.79066377,0.00014718,2]
[423322417,1780056646000,-5500.0,0.00014718,2]
[423322414,1780056646000,-253.7425319,0.00014718,2]
[423322412,1780056646000,-2351.94961658,0.00014718,2]
[423322410,1780056646000,-927.19930424,0.00014718,2]
[423322408,1780056646000,-2826.19729087,0.00014718,2]
[423325082,1780056730000,365.0,0.00020188,120]
[423325239,1780057827000,347.0,0.00020187,120]
[423325242,1780057832000,-425.97873272,7.6e-05,2]
[423325241,1780057832000,-3596.14083135,7.6e-05,2]
[423325265,1780057838000,-227.25419323,7.8e-05,2]
[423325266,1780057838000,-632.97654753,8e-05,2]
[423325264,1780057838000,-4449.56409163,7.6e-05,2]
[423325268,1780057839000,-2669.82786984,8e-05,2]
[423325267,1780057839000,-4367.02345247,8e-05,2]
[423325271,1780057841000,-268.15994802,9.8e-05,2]
[423325270,1780057841000,-136.47213016,8e-05,2]
[423325274,1780057841000,-160.0,0.00013662,2]
[423325272,1780057841000,-185.0,0.00011579,2]
[423325269,1780057841000,-2193.7,8e-05,2]
[423325273,1780057841000,-309.0657028,0.000118,2]
[423325276,1780057841000,-500.0,0.00013698,2]
[423325279,1780057841000,-500.0,0.00013698,2]
[423325275,1780057841000,-160.0,0.00013663,2]
[423325278,1780057841000,-500.0,0.00013698,2]
[423325277,1780057841000,-500.0,0.00013698,2]
[423325287,1780057841000,-11819.29947472,0.00014512,2]
[423325285,1780057841000,-1285.1858261,0.00014512,2]
[423325286,1780057841000,-895.86702749,0.00014512,2]
[423325283,1780057841000,-3148.18227231,0.00014512,2]
[423325282,1780057841000,-155.49703593,0.00014416,2]
[423325280,1780057841000,-1000.0,0.00013699,2]
[423325281,1780057841000,-349.97145758,0.000138,2]
[423325284,1780057841000,-513.72724388,0.00014512,2]
[423325309,1780057843000,-760.69687761,0.00014512,2]
[423325308,1780057843000,-8462.20249191,0.00014512,2]
[423325307,1780057843000,-1246.62269966,0.00014512,2]
[423325306,1780057843000,-5078.49694158,0.00014512,2]
[423325305,1780057843000,-7484.74108838,0.00014512,2]
[423325317,1780057846000,-1778.651535,0.00014512,2]
[423325318,1780057846000,-2861.11591189,0.00014512,2]
[423331052,1780058910000,330.0,0.00020186,120]
[423331057,1780058960000,195.11404664,0.00019261,120]
[423331648,1780059042000,-5000.0,0.00010792,2]
[423331650,1780059042000,-188.74303128,0.00010901,2]
[423331652,1780059042000,-204.1651672,0.00011067,2]
[423331658,1780059042000,-3001.54457242,0.00012175,2]
[423331654,1780059042000,-160.0,0.00012167,2]
[423331656,1780059042000,-160.0,0.00012167,2]
[423331646,1780059042000,-3434.29024721,0.00010684,2]
[423331944,1780059047000,-500.0,0.00014297,2]
[423331943,1780059047000,-221.82138212,0.00014297,2]
[423331945,1780059047000,-500.0,0.00014297,2]
[423331942,1780059047000,-155.49703593,0.00014201,2]
[423331940,1780059047000,-2235.635239,0.00013607,2]
[423331947,1780059047000,-500.0,0.00014297,2]
[423331946,1780059047000,-500.0,0.00014297,2]
[423331941,1780059047000,-482.2646871,0.00013699,2]
[423331939,1780059047000,-240.9148973,0.00013067,2]
[423331938,1780059047000,-185.0,0.00012175,2]
[423331948,1780059047000,-500.0,0.00014297,2]
[423331949,1780059047000,-500.0,0.00014297,2]
[423331952,1780059047000,-7650.0042889,0.00014298,2]
[423331950,1780059047000,-500.0,0.00014297,2]
[423331937,1780059047000,-627.45542758,0.00012175,2]
[423331951,1780059047000,-500.0,0.00014297,2]
[423332015,1780059516000,13112.82332258,0.0002,120]
[423332023,1780059711000,-2373.64374687,0.00011088,2]
[423332033,1780059975000,313.0,0.00020197,120]
[423332055,1780060231000,-300.0,9.822e-05,2]
[423332048,1780060231000,-2356.96132093,9.528e-05,2]
[423332056,1780060231000,-1200.0,9.822e-05,2]
[423332052,1780060231000,-300.0,9.822e-05,2]
[423332050,1780060231000,-1636.22084115,9.528e-05,2]
[423332051,1780060231000,-151.0,9.624e-05,2]
[423332049,1780060231000,-1006.81783792,9.528e-05,2]
[423332057,1780060231000,-5000.0,9.823e-05,2]
[423332053,1780060231000,-300.0,9.822e-05,2]
[423332058,1780060231000,-222.17018943,9.922e-05,2]
[423332054,1780060231000,-300.0,9.822e-05,2]
[423332062,1780060231000,-300.0,0.00010751,2]
[423332059,1780060231000,-212.09943056,0.00010174,2]
[423332070,1780060231000,-300.0,0.00010751,2]
[423332071,1780060231000,-300.0,0.00010751,2]
[423332068,1780060231000,-300.0,0.00010751,2]
[423332069,1780060231000,-300.0,0.00010751,2]
[423332060,1780060231000,-151.0,0.00010328,2]
[423332066,1780060231000,-300.0,0.00010751,2]
[423332065,1780060231000,-300.0,0.00010751,2]
[423332063,1780060231000,-300.0,0.00010751,2]
[423332061,1780060231000,-300.0,0.00010751,2]
[423332064,1780060231000,-300.0,0.00010751,2]
[423332067,1780060231000,-300.0,0.00010751,2]
[423332095,1780060232000,-170.331681,0.00012012,2]
[423332093,1780060232000,-2351.0,0.00011885,2]
[423332091,1780060232000,-587.0,0.00011885,2]
[423332092,1780060232000,-587.0,0.00011885,2]
[423332090,1780060232000,-280.0,0.00011885,2]
[423332089,1780060232000,-587.0,0.00011885,2]
[423332088,1780060232000,-185.344189,0.00011859,2]
[423332087,1780060232000,-4753.15651095,0.0001176,2]
[423332085,1780060232000,-2867.78413998,0.0001176,2]
[423332086,1780060232000,-548.41250941,0.0001176,2]
[423332083,1780060232000,-167.20251795,0.00011759,2]
[423332082,1780060232000,-170.331681,0.00011411,2]
[423332077,1780060232000,-420.0,0.00010804,2]
[423332080,1780060232000,-1680.0,0.00010804,2]
[423332074,1780060232000,-300.0,0.00010751,2]
[423332076,1780060232000,-420.0,0.00010804,2]
[423332078,1780060232000,-420.0,0.00010804,2]
[423332081,1780060232000,-189.27869171,0.00011022,2]
[423332079,1780060232000,-420.0,0.00010804,2]
[423332075,1780060232000,-300.0,0.00010751,2]
[423332072,1780060232000,-300.0,0.00010751,2]
[423332073,1780060232000,-300.0,0.00010751,2]
[423332084,1780060232000,-4976.31625416,0.0001176,2]
[423332094,1780060232000,-600.0,0.00011994,2]
[423332097,1780060232000,-160.0,0.00012047,2]
[423332098,1780060232000,-250.27732806,0.00012174,2]
[423332120,1780060232000,-908.06644971,0.00013988,2]
[423332121,1780060232000,-3211.24336618,0.00013988,2]
[423332119,1780060232000,-438.23496928,0.00013988,2]
[423332118,1780060232000,-12837.04524511,0.00013988,2]
[423332116,1780060232000,-3720.7003814,0.00013614,2]
[423332114,1780060232000,-500.0,0.00013613,2]
[423332115,1780060232000,-560.63,0.00013613,2]
[423332112,1780060232000,-396.85167834,0.00013613,2]
[423332117,1780060232000,-500.0,0.00013887,2]
[423332113,1780060232000,-562.43,0.00013613,2]
[423332096,1780060232000,-160.0,0.00012046,2]
[423332109,1780060232000,-500.0,0.00013613,2]
[423332110,1780060232000,-500.0,0.00013613,2]
[423332107,1780060232000,-500.0,0.00013613,2]
[423332108,1780060232000,-500.0,0.00013613,2]
[423332104,1780060232000,-457.0,0.00013073,2]
[423332105,1780060232000,-1497.0,0.00013073,2]
[423332106,1780060232000,-720.0,0.00013194,2]
[423332101,1780060232000,-250.0,0.00012717,2]
[423332102,1780060232000,-261.0,0.00013073,2]
[423332099,1780060232000,-3629.0,0.00012175,2]
[423332100,1780060232000,-170.331681,0.00012612,2]
[423332111,1780060232000,-155.86100876,0.00013613,2]
[423332103,1780060232000,-823.0,0.00013073,2]
[423332354,1780060238000,-5000.0,0.00013848,2]
[423332355,1780060238000,-13053.11520079,0.00013988,2]
[423332356,1780060238000,-14318.7896106,0.00013988,2]
[423332359,1780060240000,-1236.39766523,0.00013988,2]
[423332370,1780060243000,-200.0,0.00014,10]
[423332371,1780060243000,-6025.17855564,0.00014084,2]
[423332369,1780060243000,-28625.17137747,0.00013988,2]
[423332367,1780060243000,-1363.64817795,0.00013848,2]
[423332368,1780060243000,-162.33080633,0.000139,2]
[423332381,1780060246000,-6292.2066766,0.00014084,2]
[423332380,1780060246000,-41495.63837141,0.00014084,2]
[423332399,1780060700000,1053.42249724,6.5e-05,2]